bitfinex/quotes_BTCUSD_20250423
["timestamp","ask_amount","ask_price","bid_price","bid_amount"]
[1745449591740,0.43598199,93669.0,93668.0,0.09044637]
[1745449592840,0.42599174,93669.0,93668.0,0.09044637]
[1745449594144,0.21247393,93669.0,93668.0,0.09044637]
[1745449594782,0.42599174,93669.0,93668.0,0.09044637]
[1745449596313,0.21247393,93669.0,93668.0,0.09044637]
[1745449596487,0.42599174,93669.0,93668.0,0.09044637]
[1745449597414,0.11517393,93669.0,93668.0,0.09044637]
[1745449609618,0.11517393,93669.0,93668.0,0.00104637]
[1745449610342,0.00828379,93669.0,93668.0,0.34204637]
[1745449610706,0.002,93669.0,93668.0,0.39034637]
[1745449610907,0.002,93669.0,93668.0,0.47974637]
[1745449621026,0.002,93669.0,93668.0,0.43144637]
[1745449624169,0.0458,93691.0,93677.0,0.01067497]
[1745449624350,0.10689014,93690.0,93682.0,0.34]
[1745449624548,0.0063321,93690.0,93689.0,0.34]
[1745449624998,0.0004253,93713.0,93709.0,0.55342667]
[1745449624999,0.0004252,93711.0,93709.0,0.55342667]
[1745449625357,0.0004252,93711.0,93709.0,0.64282667]
[1745449625358,0.0004253,93710.0,93709.0,0.64282667]
[1745449626077,0.0034253,93710.0,93709.0,0.64382667]
[1745449626281,0.00089355,93710.0,93709.0,0.64282667]
[1745449626692,0.00389355,93710.0,93709.0,0.64382667]
[1745449627537,0.00789355,93710.0,93709.0,0.64382667]
[1745449627915,0.03690895,93721.0,93712.0,0.34]
[1745449628095,0.0063321,93720.0,93712.0,0.34]
[1745449629165,0.0063321,93720.0,93712.0,0.341]
[1745449629379,0.0093321,93720.0,93712.0,0.341]
[1745449630176,0.0133321,93720.0,93712.0,0.341]
[1745449636921,0.0133321,93720.0,93712.0,0.55441795]
[1745449637139,0.0133321,93720.0,93716.0,0.34]
[1745449637298,0.007,93720.0,93716.0,0.34]
[1745449637500,0.007,93720.0,93719.0,0.34]
[1745449637974,0.003,93720.0,93719.0,0.34]
[1745449638326,0.005,93720.0,93719.0,0.34]
[1745449638645,0.008,93720.0,93719.0,0.34]
[1745449639233,0.011,93720.0,93719.0,0.341]
[1745449639434,0.006,93720.0,93719.0,0.341]
[1745449639833,0.011,93720.0,93719.0,0.341]
[1745449640078,0.011,93720.0,93719.0,0.3899]
[1745449640439,0.006,93720.0,93719.0,0.3899]
[1745449640658,0.009,93720.0,93719.0,0.3909]
[1745449641068,0.009,93720.0,93719.0,0.0509]
[1745449641231,0.006,93720.0,93719.0,0.0528871]
[1745449641441,0.007,93720.0,93719.0,0.0528871]
[1745449641759,0.007,93720.0,93719.0,0.0518871]
[1745449641760,0.004,93720.0,93719.0,0.0518871]
[1745449641944,0.001,93720.0,93719.0,0.0518871]
[1745449642147,0.001,93720.0,93719.0,0.0049871]
[1745449642748,0.001,93720.0,93719.0,0.4214]
[1745449643157,0.001,93720.0,93719.0,0.86829014]
[1745449643558,0.001,93720.0,93719.0,0.88799814]
[1745449644051,0.0004253,93725.0,93720.0,0.5640717]
[1745449644393,0.0004253,93725.0,93722.0,0.55339706]
[1745449644830,0.0004253,93725.0,93722.0,0.57310506]
[1745449645942,0.00024478,93733.0,93732.0,0.2133743]
[1745449646142,0.00024478,93733.0,93732.0,0.30572102]
[1745449646342,0.00024478,93733.0,93732.0,0.3224423]
[1745449646602,0.00024478,93733.0,93732.0,0.6624423]
[1745449647176,0.00624478,93733.0,93732.0,0.6634423]
[1745449647735,0.00324478,93733.0,93732.0,0.6624423]
[1745449648034,0.00424478,93733.0,93732.0,0.6634423]
[1745449648561,0.00524478,93733.0,93732.0,0.6634423]
[1745449648765,0.00124478,93733.0,93732.0,0.6634423]
[1745449649223,0.00124478,93733.0,93732.0,0.6654423]
[1745449649782,0.00024478,93733.0,93732.0,0.6644423]
[1745449650195,0.00124478,93733.0,93732.0,0.6664423]
[1745449652948,0.00124478,93733.0,93732.0,0.69362997]
[1745449653900,0.00124478,93733.0,93732.0,0.72175574]
[1745449654538,0.002,93749.0,93735.0,0.3888]
[1745449654739,0.002,93749.0,93736.0,0.687443]
[1745449654944,0.002,93749.0,93736.0,0.71556877]
[1745449655162,0.002,93749.0,93736.0,0.73527677]
[1745449655811,0.0014253,93737.0,93736.0,0.73527677]
[1745449656183,0.0004253,93737.0,93736.0,0.73527677]
[1745449656383,0.0004253,93737.0,93736.0,0.73727677]
[1745449656586,0.0014253,93737.0,93736.0,0.68096333]
[1745449656797,0.0014253,93737.0,93736.0,0.68396333]
[1745449657131,0.0004253,93737.0,93736.0,0.68296333]
[1745449657287,0.0014253,93737.0,93736.0,0.68596333]
[1745449658063,0.0014253,93737.0,93736.0,1.10536333]
[1745449659546,0.0014253,93737.0,93736.0,0.87090286]
[1745449661616,0.0014253,93737.0,93736.0,0.89902863]
[1745449661739,0.0014253,93737.0,93736.0,0.87090286]
[1745449661944,0.0014253,93737.0,93736.0,0.89809053]
[1745449662445,0.0014253,93737.0,93736.0,1.04764729]
[1745449662915,0.0014253,93737.0,93736.0,0.80733567]
[1745449663085,0.002,93749.0,93748.0,0.21333788]
[1745449663281,0.002,93749.0,93748.0,0.26512387]
[1745449663484,0.002,93749.0,93748.0,0.068508]
[1745449663676,0.002,93749.0,93748.0,0.26023355]
[1745449663868,0.002,93749.0,93748.0,0.70775932]
[1745449664293,0.002,93749.0,93748.0,0.70780569]
[1745449664863,0.002,93749.0,93748.0,1.04780569]
[1745449665061,0.002,93749.0,93748.0,0.99249225]
[1745449665382,0.003,93749.0,93748.0,0.99249225]
[1745449665591,0.003,93749.0,93748.0,1.08205225]
[1745449666975,0.004,93749.0,93748.0,1.08205225]
[1745449668114,0.003,93749.0,93748.0,1.08205225]
[1745449668512,0.004,93749.0,93748.0,1.08205225]
[1745449670344,0.004,93749.0,93748.0,1.40177225]
[1745449672126,0.003,93749.0,93748.0,1.40177225]
[1745449672491,0.002,93749.0,93748.0,1.50648569]
[1745449673073,0.002,93749.0,93748.0,1.47835992]
[1745449673643,0.002,93749.0,93748.0,1.50648569]
[1745449673848,0.002,93749.0,93748.0,1.47835992]
[1745449674632,0.002,93749.0,93748.0,1.45117225]
[1745449674830,0.002,93749.0,93748.0,1.40277225]
[1745449679472,0.002,93749.0,93748.0,1.40433225]
[1745449694892,0.002,93749.0,93748.0,1.38462425]
[1745449695606,0.002,93749.0,93748.0,1.40440724]
[1745449698605,0.002,93749.0,93748.0,1.38462425]
[1745449699936,0.002,93749.0,93748.0,1.49151439]
[1745449700077,0.002,93749.0,93748.0,1.5258378]
[1745449704331,0.0004251,93758.0,93757.0,0.5533174]
[1745449704530,0.0004251,93758.0,93757.0,1.07960754]
[1745449704957,0.0004251,93758.0,93757.0,1.0993901]
[1745449706724,0.0014251,93758.0,93757.0,1.1023901]
[1745449707299,0.0014251,93758.0,93757.0,1.1043901]
[1745449717427,0.0500251,93758.0,93757.0,0.65749996]
[1745449717631,0.0500251,93758.0,93757.0,0.74885996]
[1745449717841,0.0500251,93758.0,93757.0,0.7290774]
[1745449718043,0.0500251,93758.0,93757.0,1.0690774]
[1745449718189,0.0500251,93758.0,93757.0,0.7290774]
[1745449720610,0.0500251,93758.0,93757.0,1.08883813]
[1745449724530,0.0500251,93758.0,93757.0,0.99747813]
[1745449724739,0.0500251,93758.0,93757.0,1.08883813]
[1745449726711,0.0500251,93758.0,93757.0,1.40847813]
[1745449730332,0.0500251,93758.0,93757.0,1.40848625]
[1745449733056,0.0500251,93758.0,93757.0,1.3887174]
[1745449734002,0.002,93769.0,93768.0,0.55329238]
[1745449734218,0.002,93769.0,93768.0,0.66018252]
[1745449734583,0.002,93769.0,93768.0,0.6799436]
[1745449735819,0.002,93769.0,93768.0,0.66018252]
[1745449736028,0.003,93769.0,93768.0,0.66518252]
[1745449737391,0.003,93769.0,93768.0,1.08458252]
[1745449738215,0.003,93769.0,93768.0,0.97769238]
[1745449749718,0.003,93769.0,93768.0,0.73171848]
[1745449750825,0.003,93769.0,93768.0,0.82311848]
[1745449751231,0.003,93769.0,93768.0,1.03641086]
[1745449753142,0.003,93769.0,93768.0,0.72909238]
[1745449755125,0.003,93769.0,93768.0,1.06909238]
[1745449756570,0.003,93769.0,93768.0,1.38869238]
[1745449757606,0.0954,93769.0,93768.0,1.38869238]
[1745449774852,0.0954,93769.0,93768.0,1.88869238]
[1745449777024,0.0904,93769.0,93768.0,1.88869238]
[1745449777772,0.0904,93769.0,93768.0,1.79729238]
[1745449778001,0.0904,93769.0,93768.0,1.88785238]
[1745449778219,0.0904,93769.0,93768.0,1.46845238]
[1745449783792,0.0904,93769.0,93768.0,1.37789238]
[1745449784122,0.0904,93769.0,93768.0,1.46845238]
[1745449785896,0.0004249,93775.0,93770.0,0.55328783]
[1745449787163,0.0004249,93775.0,93770.0,0.55428783]
[1745449787882,0.0004249,93775.0,93770.0,0.55628783]
[1745449790407,0.0004249,93775.0,93770.0,0.64684783]
[1745449798433,0.0004249,93775.0,93770.0,0.55628783]
[1745449798674,0.0500249,93771.0,93770.0,0.43356]
[1745449799634,0.0500249,93771.0,93770.0,0.43256]
[1745449800294,0.0500249,93771.0,93770.0,0.43056]
[1745449800493,0.0500249,93771.0,93770.0,0.09056]
[1745449800999,0.0500249,93771.0,93770.0,0.09156]
[1745449801402,0.0500249,93771.0,93770.0,0.001]
[1745449801667,0.20641504,93771.0,93770.0,0.09156]
[1745449802171,0.2156898,93771.0,93770.0,0.09156]
[1745449803274,0.2156898,93771.0,93770.0,0.09056]
[1745449803499,0.2156898,93771.0,93770.0,0.09156]
[1745449803815,0.2186898,93771.0,93770.0,0.09156]
[1745449804018,0.2186898,93771.0,93770.0,0.09056]
[1745449804232,0.2216898,93771.0,93770.0,0.09056]
[1745449809382,0.21241504,93771.0,93770.0,0.09056]
[1745449809640,0.1055249,93771.0,93770.0,0.64384783]
[1745449810465,0.1025249,93771.0,93770.0,0.64384783]
[1745449810712,0.20741504,93771.0,93770.0,0.34]
[1745449810921,0.20741504,93771.0,93770.0,0.43052]
[1745449811401,0.20841504,93771.0,93770.0,0.43052]
[1745449812450,0.20841504,93771.0,93768.0,0.8196]
[1745449812649,0.15659014,93770.0,93769.0,0.09052]
[1745449812824,0.21237786,93770.0,93769.0,0.09052]
[1745449814053,0.21337786,93770.0,93769.0,0.09052]
[1745449814212,0.11707786,93770.0,93769.0,0.09052]
[1745449814609,0.33336569,93770.0,93769.0,0.09052]
[1745449814814,0.42826569,93770.0,93769.0,0.09052]
[1745449815335,0.42926569,93770.0,93769.0,0.09052]
[1745449815741,0.42826569,93770.0,93768.0,0.8196]
[1745449815935,0.20179014,93769.0,93768.0,0.91012]
[1745449816102,0.21089097,93769.0,93768.0,0.91012]
[1745449817087,0.21089097,93769.0,93768.0,0.91112]
[1745449817223,0.21689097,93769.0,93768.0,0.91212]
[1745449818425,0.21689097,93769.0,93768.0,0.91112]
[1745449818636,0.22389097,93769.0,93768.0,0.91212]
[1745449821340,0.23843182,93769.0,93768.0,0.91212]
[1745449821769,0.23843182,93769.0,93768.0,0.59252]
[1745449825128,0.23539043,93769.0,93768.0,0.59252]
[1745449830866,0.23639043,93769.0,93768.0,0.59252]
[1745449833398,0.23639043,93769.0,93768.0,0.502]
[1745449835804,0.23639043,93769.0,93768.0,0.26924001]
[1745449842101,0.23539043,93769.0,93768.0,0.26924001]
[1745449842540,0.24287016,93769.0,93768.0,0.26924001]
[1745449843548,0.22365698,93769.0,93768.0,0.26724001]
[1745449843761,0.24465698,93769.0,93768.0,0.26924001]
[1745449843959,0.23717725,93769.0,93768.0,0.26824001]
[1745449844322,0.23617725,93769.0,93768.0,0.26824001]
[1745449844507,0.24717725,93769.0,93768.0,0.26924001]
[1745449844919,0.24817725,93769.0,93768.0,0.26924001]
[1745449858485,0.25566656,93769.0,93768.0,0.26924001]
[1745449860097,0.24817725,93769.0,93768.0,0.26924001]
[1745449860302,0.24717725,93769.0,93768.0,0.26924001]
[1745449861963,0.15227725,93769.0,93768.0,0.26924001]
[1745449867931,0.15976567,93769.0,93768.0,0.26924001]
[1745449874234,0.14876567,93769.0,93768.0,0.04712193]
[1745449874653,0.13576567,93769.0,93768.0,0.04712193]
[1745449875088,0.14276567,93769.0,93768.0,0.04812193]
[1745449894883,0.23137725,93769.0,93768.0,0.04812193]
[1745449900611,0.1207364,93769.0,93768.0,0.04812193]
[1745449914730,0.1137364,93769.0,93768.0,0.04712193]
[1745449915688,0.1197364,93769.0,93768.0,0.04812193]
[1745449917779,0.1127364,93769.0,93768.0,0.04712193]
[1745449918163,0.1067364,93769.0,93768.0,0.04712193]
[1745449918360,0.1187364,93769.0,93768.0,0.04812193]
[1745449921664,0.12871391,93769.0,93768.0,0.04812193]
[1745449922504,0.13619702,93769.0,93768.0,0.04812193]
[1745449923431,0.12871391,93769.0,93768.0,0.04812193]
[1745449924597,0.13619702,93769.0,93768.0,0.04812193]
[1745449928679,0.14686152,93769.0,93764.0,0.04703196]
[1745449928900,0.10689014,93768.0,93764.0,0.04703196]
[1745449929058,0.11233472,93768.0,93764.0,0.04703196]
[1745449930833,0.11533472,93768.0,93764.0,0.04703196]
[1745449933532,0.11533472,93768.0,93765.0,0.0497]
[1745449933732,0.00844458,93768.0,93767.0,0.26079465]
[1745449933940,0.003,93768.0,93767.0,0.26079465]
[1745449934143,0.00073655,93768.0,93765.0,0.28681063]
[1745449934343,0.00073655,93768.0,93765.0,0.21329702]
[1745449934559,7e-05,93779.0,93765.0,0.21329702]
[1745449934756,0.10689014,93774.0,93765.0,0.39055409]
[1745449935555,0.10689014,93774.0,93767.0,0.21329369]
[1745449936583,0.10689014,93774.0,93765.0,0.17825707]
[1745449937139,0.10789014,93774.0,93765.0,0.17825707]
[1745449937341,0.10689014,93774.0,93765.0,0.39155419]
[1745449937578,0.10689014,93774.0,93765.0,0.39055419]
[1745449937778,0.10789014,93774.0,93765.0,0.39055419]
[1745449938207,0.10689014,93774.0,93765.0,0.39055419]
[1745449938571,0.10689014,93774.0,93765.0,0.39155419]
[1745449939220,0.10689014,93774.0,93765.0,0.39055419]
[1745449939420,0.10689014,93774.0,93765.0,0.39255419]
[1745449940375,0.10689014,93774.0,93766.0,0.21329513]
[1745449942135,0.10689014,93774.0,93766.0,0.21429513]
[1745449942464,0.10689014,93774.0,93768.0,0.21329167]
[1745449944085,0.10689014,93774.0,93768.0,0.001]
[1745449948873,0.10689014,93774.0,93768.0,0.21429085]
[1745449949555,7e-05,93779.0,93772.0,0.22394741]
[1745449949786,7e-05,93779.0,93774.0,0.55327873]
[1745449950658,0.0014249,93775.0,93774.0,0.55327873]
[1745449951082,0.0024249,93775.0,93774.0,0.57305869]
[1745449951282,0.0014249,93775.0,93774.0,0.57305869]
[1745449951435,0.0024249,93775.0,93774.0,0.57305869]
[1745449951637,0.0024249,93775.0,93774.0,0.57505869]
[1745449951878,0.0014249,93775.0,93774.0,0.57505869]
[1745449953163,0.0014249,93775.0,93774.0,0.55527873]
[1745449953372,0.0014249,93775.0,93774.0,0.55727873]
[1745449958215,0.0019197,93789.0,93780.0,0.21326444]
[1745449958422,0.10689014,93788.0,93780.0,0.21326444]
[1745449958968,0.00503455,93787.0,93781.0,0.08944]
[1745449959179,0.10689014,93786.0,93781.0,0.08944]
[1745449959501,0.10689014,93786.0,93781.0,0.08948637]
[1745449960109,0.00503455,93785.0,93781.0,0.08948637]
[1745449960314,0.10689014,93784.0,93781.0,0.08948637]
[1745449962420,0.05179493,93783.0,93781.0,0.08948637]
[1745449962661,0.10689014,93782.0,93781.0,0.08948637]
[1745449963230,0.11192469,93782.0,93781.0,0.08948637]
[1745449966713,0.15802469,93782.0,93781.0,0.08948637]
[1745449970867,0.20622469,93782.0,93781.0,0.08948637]
[1745449971645,0.20622469,93782.0,93781.0,4.637e-05]
[1745449971845,0.20722469,93782.0,93781.0,4.637e-05]
[1745449972148,0.22456047,93782.0,93781.0,4.637e-05]
[1745449972372,0.22176554,93782.0,93781.0,4.637e-05]
[1745449972982,0.22276554,93782.0,93781.0,4.637e-05]
[1745449973597,0.22176554,93782.0,93781.0,4.637e-05]
[1745449973796,0.22476554,93782.0,93781.0,4.637e-05]
[1745449974634,0.22876554,93782.0,93781.0,4.637e-05]
[1745449985990,0.44202608,93782.0,93781.0,4.637e-05]
[1745449987973,0.02520399,93781.0,93774.0,0.08944]
[1745449988176,0.10689014,93777.0,93774.0,0.08948628]
[1745449988488,0.0049957,93776.0,93774.0,0.08948628]
[1745449988695,0.10689014,93775.0,93774.0,0.08948628]
[1745449989117,0.15978584,93775.0,93774.0,0.08948628]
[1745449991012,0.16278584,93775.0,93774.0,0.08948628]
[1745449991352,0.16078584,93775.0,93774.0,0.08948628]
[1745449991753,0.16278584,93775.0,93774.0,0.08948628]
[1745449997355,0.16178584,93775.0,93774.0,0.08948628]
[1745449997667,0.16278584,93775.0,93774.0,0.08948628]
[1745449997887,0.16078584,93775.0,93774.0,0.08948628]
[1745449998085,0.11288584,93775.0,93774.0,0.08948628]
[1745449998288,0.11488584,93775.0,93774.0,0.08948628]
[1745449998943,0.11288584,93775.0,93774.0,0.10928992]
[1745449999174,0.11388584,93775.0,93774.0,0.10928992]
[1745449999587,0.11288584,93775.0,93774.0,0.08948628]
[1745450004365,0.15908584,93775.0,93774.0,0.08948628]
[1745450006407,0.11288584,93775.0,93774.0,0.08948628]
[1745450016491,0.11288584,93775.0,93774.0,0.10929899]
[1745450016914,0.10789014,93775.0,93774.0,0.10929899]
[1745450017333,0.11288247,93775.0,93774.0,0.10929899]
[1745450035177,0.11188247,93775.0,93774.0,0.10929899]
[1745450035602,0.11288247,93775.0,93774.0,0.10929899]
[1745450040149,0.11288247,93775.0,93774.0,0.66257772]
[1745450040369,0.00599233,93775.0,93774.0,0.66257772]
[1745450040583,0.001,93775.0,93774.0,0.66257772]
[1745450040784,0.0475197,93789.0,93779.0,0.34]
[1745450040957,0.10689014,93788.0,93781.0,0.21326067]
[1745450041188,0.10689014,93788.0,93780.0,0.23307779]
[1745450041572,0.10689014,93788.0,93781.0,0.01981271]
[1745450042052,0.10689014,93788.0,93782.0,0.01981271]
[1745450042249,0.10789014,93788.0,93782.0,0.01981271]
[1745450042656,0.10789014,93788.0,93783.0,0.01981271]
[1745450043259,0.10789014,93788.0,93784.0,0.01981271]
[1745450043626,0.10989014,93788.0,93784.0,0.01981271]
[1745450043926,0.10889014,93788.0,93785.0,0.01981271]
[1745450044128,0.10789014,93788.0,93786.0,0.01981271]
[1745450044374,0.00502568,93787.0,93786.0,0.01981271]
[1745450044612,0.11191582,93787.0,93786.0,0.01981271]
[1745450045876,0.11442866,93787.0,93786.0,0.01981271]
[1745450047189,0.11542866,93787.0,93786.0,0.01981271]
[1745450055970,0.11542866,93787.0,93786.0,0.10921271]
[1745450058202,0.16392866,93787.0,93786.0,0.10921271]
[1745450061485,0.42427783,93787.0,93786.0,0.01981271]
[1745450061681,0.42427783,93787.0,93786.0,0.10921271]
[1745450061851,0.42427783,93787.0,93786.0,0.0894]
[1745450062478,0.42327783,93787.0,93786.0,0.0894]
[1745450062682,0.42727783,93787.0,93786.0,0.0894]
[1745450063238,0.43027783,93787.0,93786.0,0.0894]
[1745450068678,0.21702866,93787.0,93786.0,0.0894]
[1745450069853,0.21402866,93787.0,93786.0,0.0894]
[1745450070184,0.21602866,93787.0,93786.0,0.0894]
[1745450070517,0.01066302,93782.0,93777.0,0.0547752]
[1745450070719,0.10689014,93781.0,93778.0,0.0894]
[1745450070914,0.11451323,93781.0,93778.0,0.0894]
[1745450071949,0.11551323,93781.0,93778.0,0.0894]
[1745450072987,0.11551323,93781.0,93779.0,0.01978382]
[1745450073653,0.11651323,93781.0,93779.0,0.01978382]
[1745450074044,0.11551323,93781.0,93778.0,0.0894]
[1745450074346,0.11851323,93781.0,93778.0,0.0894]
[1745450074921,0.11651323,93781.0,93778.0,0.0894]
[1745450075121,0.11751323,93781.0,93778.0,0.0894]
[1745450076080,0.11551323,93781.0,93778.0,0.0894]
[1745450076280,0.11651323,93781.0,93778.0,0.0894]
[1745450081613,0.0478,93780.0,93778.0,0.0894]
[1745450081823,0.11450584,93779.0,93778.0,0.0894]
[1745450083410,0.11550584,93779.0,93778.0,0.0894]
[1745450084046,0.11650584,93779.0,93778.0,0.0894]
[1745450085449,0.11650584,93779.0,93774.0,4.628e-05]
[1745450085689,0.11650584,93779.0,93778.0,0.0894]
[1745450086469,0.11550584,93779.0,93778.0,0.0894]
[1745450086670,0.26217645,93775.0,93774.0,4.628e-05]
[1745450087012,0.36906659,93775.0,93774.0,4.628e-05]
[1745450087225,0.37668229,93775.0,93774.0,4.628e-05]
[1745450087917,0.37968229,93775.0,93774.0,4.628e-05]
[1745450088544,0.16640584,93775.0,93774.0,4.628e-05]
[1745450089174,0.17040584,93775.0,93774.0,4.628e-05]
[1745450104903,0.17040584,93775.0,93774.0,0.01983346]
[1745450109587,0.16740584,93775.0,93774.0,0.01983346]
[1745450109898,0.16940584,93775.0,93774.0,0.10923346]
[1745450110390,0.16740584,93775.0,93774.0,0.10923346]
[1745450110587,0.16840584,93775.0,93774.0,0.10923346]
[1745450110987,0.16440584,93775.0,93774.0,0.10923346]
[1745450111347,0.16740584,93775.0,93774.0,0.10923346]
[1745450111751,0.16440584,93775.0,93774.0,0.10923346]
[1745450112192,0.16640584,93775.0,93774.0,0.10923346]
[1745450114066,0.16640584,93775.0,93774.0,0.01983346]
[1745450123433,0.11750584,93775.0,93774.0,0.01983346]
[1745450123630,0.0106157,93775.0,93774.0,0.01983346]
[1745450123872,0.003,93775.0,93774.0,0.01983346]
[1745450124260,0.001,93775.0,93774.0,0.01983346]
[1745450124459,0.001,93775.0,93774.0,0.02083346]
[1745450124886,0.001,93775.0,93774.0,0.01983346]
[1745450125374,0.0019197,93789.0,93774.0,0.01983346]
[1745450125528,0.10689014,93788.0,93779.0,0.35451414]
[1745450125733,0.1145665,93788.0,93780.0,0.01978718]
[1745450126137,0.1145665,93788.0,93781.0,0.01978718]
[1745450126542,0.1145665,93788.0,93782.0,0.01978718]
[1745450127124,0.01066257,93786.0,93783.0,0.01978718]
[1745450127300,0.10689014,93785.0,93784.0,0.0894]
[1745450127511,0.11460024,93785.0,93784.0,0.0894]
[1745450127931,0.11460024,93785.0,93784.0,0.10918718]
[1745450128486,0.11560024,93785.0,93784.0,0.10918718]
[1745450129411,0.11660024,93785.0,93784.0,0.10918718]
[1745450133385,0.01066279,93784.0,93780.0,0.0894]
[1745450133623,0.10689014,93783.0,93780.0,0.0894]
[1745450133842,0.26066207,93782.0,93780.0,0.0894]
[1745450134064,0.0474,93773.0,93770.0,0.0894]
[1745450134272,0.10689014,93772.0,93770.0,0.0894]
[1745450134477,0.11459122,93772.0,93770.0,0.0894]
[1745450136819,0.11559122,93772.0,93770.0,0.0894]
[1745450137552,0.11559122,93772.0,93760.0,0.17730348]
[1745450137553,0.01066518,93763.0,93760.0,4.641e-05]
[1745450137791,0.2607083,93761.0,93760.0,4.641e-05]
[1745450137990,0.41409844,93761.0,93760.0,4.641e-05]
[1745450138344,0.42177181,93761.0,93760.0,4.641e-05]
[1745450139013,0.42177181,93761.0,93760.0,0.00104641]
[1745450139218,0.42177181,93761.0,93760.0,0.00204641]
[1745450139712,0.42177181,93761.0,93760.0,0.00104641]
[1745450140211,0.42177181,93761.0,93760.0,4.641e-05]
[1745450140630,0.20846351,93761.0,93760.0,4.641e-05]
[1745450143832,0.43910759,93761.0,93760.0,4.641e-05]
[1745450144079,0.43631266,93761.0,93760.0,4.641e-05]
[1745450144279,0.43731266,93761.0,93760.0,4.641e-05]
[1745450145733,0.44231266,93761.0,93760.0,4.641e-05]
[1745450146177,0.44231266,93761.0,93743.0,0.0902502]
[1745450146178,0.22788783,93744.0,93743.0,0.0902502]
[1745450146384,0.22788783,93744.0,93743.0,0.00098835]
[1745450146385,0.38267797,93744.0,93743.0,0.00098835]
[1745450146598,0.39017802,93744.0,93743.0,0.00098835]
[1745450146808,0.43537802,93744.0,93743.0,0.00098835]
[1745450147016,0.52381698,93744.0,93743.0,0.00098835]
[1745450147433,0.43637802,93744.0,93743.0,0.00098835]
[1745450147633,0.43837802,93744.0,93743.0,0.00098835]
[1745450148691,0.44037802,93744.0,93743.0,0.00098835]
[1745450149003,0.43837802,93744.0,93743.0,0.00098835]
[1745450149207,0.44237802,93744.0,93743.0,0.00098835]
[1745450149390,0.44137802,93744.0,93743.0,0.00098835]
[1745450149542,0.44237802,93744.0,93743.0,0.00098835]
[1745450149955,0.43965578,93744.0,93743.0,0.00098835]
[1745450151445,0.44758682,93744.0,93743.0,0.00098835]
[1745450152925,0.44658682,93744.0,93743.0,0.00098835]
[1745450154307,0.44758682,93744.0,93743.0,0.00098835]
[1745450158659,0.53714666,93744.0,93743.0,0.00098835]
[1745450158871,0.53954062,93744.0,93743.0,0.00098835]
[1745450159944,0.44998078,93744.0,93743.0,0.00098835]
[1745450160781,0.78998078,93744.0,93743.0,0.00098835]
[1745450160959,0.83998078,93744.0,93743.0,0.00098835]
[1745450161503,0.83598078,93744.0,93743.0,0.00098835]
[1745450161712,0.8538114,93744.0,93743.0,0.00098835]
[1745450162086,0.97070154,93744.0,93743.0,0.00198835]
[1745450162505,0.95087092,93744.0,93743.0,0.00198835]
[1745450162928,0.84398078,93744.0,93743.0,0.00198835]
[1745450166360,0.86385582,93744.0,93743.0,0.00198835]
[1745450166961,0.87377271,93744.0,93743.0,0.00198835]
[1745450167767,0.88121037,93744.0,93743.0,0.00198835]
[1745450168267,0.87377271,93744.0,93743.0,0.00198835]
[1745450168496,0.85389767,93744.0,93743.0,0.00198835]
[1745450168886,0.81133533,93744.0,93743.0,0.00198835]
[1745450169256,0.81033533,93744.0,93743.0,0.00198835]
[1745450169465,0.81133533,93744.0,93743.0,0.00198835]
[1745450169816,0.80389767,93744.0,93743.0,0.00198835]
[1745450170404,0.83123346,93744.0,93743.0,0.00198835]
[1745450173819,0.8288395,93744.0,93743.0,0.00198835]
[1745450174028,0.93569101,93744.0,93743.0,0.00198835]
[1745450175078,0.82880087,93744.0,93743.0,0.00198835]
[1745450177432,0.83114995,93744.0,93743.0,0.00198835]
[1745450185018,0.86111185,93744.0,93743.0,0.00198835]
[1745450185802,0.86011185,93744.0,93743.0,0.00198835]
[1745450186144,0.83114995,93744.0,93743.0,0.00198835]
[1745450186353,0.83014995,93744.0,93743.0,0.00198835]
[1745450186524,0.83114995,93744.0,93743.0,0.00198835]
[1745450187015,0.93804009,93744.0,93743.0,0.00198835]
[1745450187623,0.93567617,93744.0,93743.0,0.00198835]
[1745450189876,0.96563944,93744.0,93743.0,0.00198835]
[1745450190566,0.96563944,93744.0,93732.0,0.0008504]
[1745450190567,0.01554085,93733.0,93732.0,0.0008504]
[1745450190736,0.01554085,93733.0,93690.0,0.1774019]
[1745450190737,0.01554085,93733.0,93726.0,1e-08]
[1745450190738,0.44984085,93727.0,93726.0,1e-08]
[1745450190912,0.64372689,93727.0,93726.0,1e-08]
[1745450191333,0.67354191,93727.0,93726.0,1e-08]
[1745450191575,0.68097957,93727.0,93726.0,1e-08]
[1745450191787,0.22893564,93723.0,93722.0,1e-08]
[1745450191982,0.56894019,93721.0,93720.0,1e-08]
[1745450192184,0.32326068,93712.0,93705.0,0.0008504]
[1745450192383,0.27657435,93706.0,93705.0,0.0008504]
[1745450192691,0.27657435,93706.0,93669.0,0.0896]
[1745450192692,0.22800624,93692.0,93669.0,0.0896]
[1745450192908,0.33489638,93692.0,93669.0,0.0896]
[1745450193320,0.35913035,93692.0,93669.0,0.0896]
[1745450194099,0.35913035,93692.0,93666.0,0.34]
[1745450194306,0.35913035,93692.0,93665.0,0.0288]
[1745450194525,0.37904061,93692.0,93665.0,0.0288]
[1745450194729,0.38004061,93692.0,93691.0,0.005]
[1745450194927,0.38104061,93692.0,93691.0,0.006]
[1745450195108,0.35369269,93692.0,93691.0,0.006]
[1745450195463,0.3437758,93692.0,93691.0,0.006]
[1745450197479,0.36743118,93692.0,93691.0,0.006]
[1745450197707,0.36643118,93692.0,93691.0,0.005]
[1745450197925,0.37747361,93692.0,93691.0,0.006]
[1745450198134,0.37647361,93692.0,93691.0,0.003]
[1745450198352,0.37447361,93692.0,93691.0,0.005]
[1745450198572,0.3843905,93692.0,93691.0,0.005]
[1745450199437,0.36073512,93692.0,93691.0,0.005]
[1745450199627,0.36972849,93692.0,93691.0,0.002]
[1745450199884,0.37272849,93692.0,93691.0,0.004]
[1745450200820,0.01067463,93680.0,93671.0,0.001]
[1745450201030,0.10689014,93678.0,93671.0,0.001]
[1745450201670,0.00441077,93677.0,93671.0,0.001]
[1745450201866,0.10689014,93676.0,93671.0,0.001]
[1745450202082,0.10693694,93676.0,93671.0,0.001]
[1745450202299,0.00441077,93675.0,93671.0,0.001]
[1745450202502,0.10689014,93674.0,93671.0,0.001]
[1745450202779,0.10689014,93674.0,93671.0,0.006]
[1745450202968,0.00441077,93673.0,93671.0,0.003]
[1745450203223,0.10689014,93672.0,93671.0,0.003]
[1745450203369,0.10689014,93672.0,93671.0,0.008]
[1745450203575,0.10689014,93672.0,93671.0,0.001]
[1745450203774,0.11130091,93672.0,93671.0,0.003]
[1745450203977,0.11130091,93672.0,93671.0,0.008]